[Event "Titled Tuesday Blitz July 4 Late 2023"]
[White "Karas, Marek"]
[Black "D`Arruda, Ricardo D."]
[WhiteFideId "14928558"]
[BlackFideId "100692"]
[WhiteElo "2451"]
[BlackElo "2559"]
[Result "1-0"]
[Round "8"]
[TimeControl "180+2"]
[Date "2023.07.04"]
[WhiteClock "0:02:00"]
[BlackClock "0:02:10"]
[Board "74"]

1. h4 {[%clk 0:03:00]}  e5 {[%clk 0:02:58]} 2. c4 {[%clk 0:02:55]}  Nf6 {[%clk 0:02:57]} 3. Nc3 {[%clk 0:02:54]}  Nc6 {[%clk 0:02:57]} 4. e3 {[%clk 0:02:54]}  d5 {[%clk 0:02:57]} 5. cxd5 {[%clk 0:02:54]}  Nxd5 {[%clk 0:02:58]} 6. Nf3 {[%clk 0:02:44]}  Be6 {[%clk 0:02:50]} 7. Ng5 {[%clk 0:02:41]}  Nxc3 {[%clk 0:02:43]} 8. bxc3 {[%clk 0:02:30]}  Bf5 {[%clk 0:02:41]} 9. Qb3 {[%clk 0:02:22]}  Qd7 {[%clk 0:02:40]} 10. Bc4 {[%clk 0:02:17]}  Na5 {[%clk 0:02:23]} 11. Bxf7+ {[%clk 0:02:08]}  Ke7 {[%clk 0:02:23]} 12. Qa3+ {[%clk 0:02:03]}  Qd6 {[%clk 0:02:14]} 13. Qxa5 {[%clk 0:02:02]}  h6 {[%clk 0:02:10]} 14. Ba3 {[%clk 0:02:00]} 1-0


[Site "https://www.chess.com"]

[Event "Titled Tuesday Blitz July 4 Late 2023"]
[White "Dinosaurio_1975"]
[Black "Mickiewicz, Piotr"]
[BlackFideId "1114891"]
[WhiteElo "2548"]
[BlackElo "2439"]
[Result "1-0"]
[Round "8"]
[TimeControl "180+2"]
[Date "2023.07.04"]
[WhiteClock "0:00:19"]
[BlackClock "0:00:05"]
[Board "75"]

1. e4 {[%clk 0:03:00]}  c6 {[%clk 0:02:59]} 2. d4 {[%clk 0:03:00]}  d5 {[%clk 0:03:00]} 3. e5 {[%clk 0:03:01]}  Bf5 {[%clk 0:02:58]} 4. Bd3 {[%clk 0:03:01]}  Bxd3 {[%clk 0:02:57]} 5. Qxd3 {[%clk 0:03:02]}  e6 {[%clk 0:02:57]} 6. c3 {[%clk 0:03:03]}  c5 {[%clk 0:02:56]} 7. Ne2 {[%clk 0:03:04]}  Nc6 {[%clk 0:02:55]} 8. O-O {[%clk 0:03:05]}  Nge7 {[%clk 0:02:49]} 9. Nd2 {[%clk 0:03:04]}  cxd4 {[%clk 0:02:41]} 10. cxd4 {[%clk 0:03:04]}  Nf5 {[%clk 0:02:41]} 11. Nf3 {[%clk 0:03:04]}  Be7 {[%clk 0:02:38]} 12. g4 {[%clk 0:03:03]}  Nh4 {[%clk 0:02:34]} 13. Nxh4 {[%clk 0:03:04]}  Bxh4 {[%clk 0:02:34]} 14. f4 {[%clk 0:03:05]}  Qb6 {[%clk 0:02:18]} 15. Be3 {[%clk 0:03:04]}  Rc8 {[%clk 0:02:06]} 16. f5 {[%clk 0:03:00]}  Nb4 {[%clk 0:01:40]} 17. Qb3 {[%clk 0:02:48]}  Nc2 {[%clk 0:01:39]} 18. Rac1 {[%clk 0:02:46]}  Qxb3 {[%clk 0:01:36]} 19. axb3 {[%clk 0:02:46]}  O-O {[%clk 0:01:33]} 20. Bd2 {[%clk 0:02:43]}  Be7 {[%clk 0:01:27]} 21. Rf3 {[%clk 0:02:31]}  Nb4 {[%clk 0:01:04]} 22. Bc3 {[%clk 0:02:24]}  f6 {[%clk 0:00:58]} 23. Nf4 {[%clk 0:01:21]}  exf5 {[%clk 0:00:52]} 24. gxf5 {[%clk 0:01:19]}  fxe5 {[%clk 0:00:50]} 25. Ne6 {[%clk 0:01:06]}  e4 {[%clk 0:00:47]} 26. Rff1 {[%clk 0:00:32]}  Nd3 {[%clk 0:00:33]} 27. Nxf8 {[%clk 0:00:23]}  Nxc1 {[%clk 0:00:31]} 28. Ne6 {[%clk 0:00:23]}  Ne2+ {[%clk 0:00:29]} 29. Kf2 {[%clk 0:00:22]}  Nxc3 {[%clk 0:00:27]} 30. Rc1 {[%clk 0:00:19]}  Bb4 {[%clk 0:00:19]} 31. bxc3 {[%clk 0:00:18]}  Rxc3 {[%clk 0:00:20]} 32. Rxc3 {[%clk 0:00:17]}  Bxc3 {[%clk 0:00:21]} 33. Ke3 {[%clk 0:00:17]}  Bb2 {[%clk 0:00:04]} 34. Nc7 {[%clk 0:00:17]}  Bc1+ {[%clk 0:00:04]} 35. Ke2 {[%clk 0:00:17]}  Kf7 {[%clk 0:00:04]} 36. Nxd5 {[%clk 0:00:17]}  b5 {[%clk 0:00:04]} 37. Nc3 {[%clk 0:00:16]}  b4 {[%clk 0:00:04]} 38. Nxe4 {[%clk 0:00:16]}  a5 {[%clk 0:00:02]} 39. Kd3 {[%clk 0:00:17]}  Bb2 {[%clk 0:00:02]} 40. Kc4 {[%clk 0:00:17]}  h6 {[%clk 0:00:01]} 41. d5 {[%clk 0:00:17]}  Bc1 {[%clk 0:00:02]} 42. h3 {[%clk 0:00:17]}  Bf4 {[%clk 0:00:03]} 43. Kb5 {[%clk 0:00:17]}  Be5 {[%clk 0:00:04]} 44. Kxa5 {[%clk 0:00:18]}  Ke7 {[%clk 0:00:04]} 45. Kxb4 {[%clk 0:00:18]}  Kd7 {[%clk 0:00:05]} 46. Kc4 {[%clk 0:00:19]}  g6 {[%clk 0:00:05]} 47. fxg6 {[%clk 0:00:18]}  Bg7 {[%clk 0:00:05]} 48. b4 {[%clk 0:00:19]} 1-0


[Site "https://www.chess.com"]

[Event "Titled Tuesday Blitz July 4 Late 2023"]
[White "Ai, Evan"]
[Black "Tikhonov, Viacheslav"]
[WhiteFideId "2094770"]
[BlackFideId "44196407"]
[WhiteElo "2438"]
[BlackElo "2547"]
[Result "0-1"]
[Round "8"]
[TimeControl "180+2"]
[Date "2023.07.04"]
[WhiteClock "0:01:08"]
[BlackClock "0:01:32"]
[Board "76"]

1. d4 {[%clk 0:03:00]}  Nf6 {[%clk 0:02:55]} 2. c4 {[%clk 0:03:00]}  g6 {[%clk 0:02:56]} 3. Nf3 {[%clk 0:02:59]}  Bg7 {[%clk 0:02:56]} 4. e3 {[%clk 0:02:55]}  O-O {[%clk 0:02:57]} 5. Bd3 {[%clk 0:02:54]}  c5 {[%clk 0:02:42]} 6. Nc3 {[%clk 0:02:52]}  cxd4 {[%clk 0:02:42]} 7. exd4 {[%clk 0:02:53]}  d5 {[%clk 0:02:43]} 8. O-O {[%clk 0:02:50]}  Nc6 {[%clk 0:02:43]} 9. h3 {[%clk 0:02:48]}  b6 {[%clk 0:02:30]} 10. cxd5 {[%clk 0:02:46]}  Nxd5 {[%clk 0:02:31]} 11. Be4 {[%clk 0:02:46]}  Nxc3 {[%clk 0:02:22]} 12. bxc3 {[%clk 0:02:46]}  Bb7 {[%clk 0:02:23]} 13. Bf4 {[%clk 0:02:41]}  Rc8 {[%clk 0:02:12]} 14. Qa4 {[%clk 0:02:30]}  Qd7 {[%clk 0:01:59]} 15. Rac1 {[%clk 0:02:19]}  Rfd8 {[%clk 0:01:53]} 16. Rfd1 {[%clk 0:01:58]}  Ne5 {[%clk 0:01:47]} 17. Qxd7 {[%clk 0:01:58]}  Nxf3+ {[%clk 0:01:47]} 18. Bxf3 {[%clk 0:01:55]}  Rxd7 {[%clk 0:01:48]} 19. Bxb7 {[%clk 0:01:51]}  Rxb7 {[%clk 0:01:49]} 20. c4 {[%clk 0:01:49]}  Rd7 {[%clk 0:01:47]} 21. Be3 {[%clk 0:01:46]}  e6 {[%clk 0:01:44]} 22. c5 {[%clk 0:01:46]}  Rdc7 {[%clk 0:01:39]} 23. Bf4 {[%clk 0:01:39]}  Rc6 {[%clk 0:01:38]} 24. Bd6 {[%clk 0:01:39]}  Bf8 {[%clk 0:01:36]} 25. Bxf8 {[%clk 0:01:32]}  Kxf8 {[%clk 0:01:37]} 26. Rb1 {[%clk 0:01:23]}  bxc5 {[%clk 0:01:37]} 27. dxc5 {[%clk 0:01:23]}  Rxc5 {[%clk 0:01:37]} 28. Rb7 {[%clk 0:01:23]}  R5c7 {[%clk 0:01:37]} 29. Rd7 {[%clk 0:01:23]}  Rxd7 {[%clk 0:01:35]} 30. Rxd7 {[%clk 0:01:22]}  Rc1+ {[%clk 0:01:36]} 31. Kh2 {[%clk 0:01:22]}  Rc2 {[%clk 0:01:37]} 32. Rxa7 {[%clk 0:01:22]}  Rxf2 {[%clk 0:01:37]} 33. a4 {[%clk 0:01:22]}  Ra2 {[%clk 0:01:36]} 34. a5 {[%clk 0:01:23]}  h5 {[%clk 0:01:37]} 35. Kg3 {[%clk 0:01:22]}  Kg7 {[%clk 0:01:36]} 36. Kf3 {[%clk 0:01:23]}  h4 {[%clk 0:01:36]} 37. Kg4 {[%clk 0:01:17]}  Rxg2+ {[%clk 0:01:32]} 38. Kxh4 {[%clk 0:01:08]}  Kh6 {[%clk 0:01:32]} 0-1


[Site "https://www.chess.com"]

[Event "Titled Tuesday Blitz July 4 Late 2023"]
[White "Lalanne, Pablo"]
[Black "Francisco Guecamburu, Candela Be"]
[WhiteFideId "112151"]
[BlackFideId "160911"]
[WhiteElo "2436"]
[BlackElo "2545"]
[Result "0-1"]
[Round "8"]
[TimeControl "180+2"]
[Date "2023.07.04"]
[WhiteClock "0:00:43"]
[BlackClock "0:01:09"]
[Board "77"]

1. e4 {[%clk 0:03:00]}  c5 {[%clk 0:02:58]} 2. Nf3 {[%clk 0:03:00]}  g6 {[%clk 0:02:58]} 3. d4 {[%clk 0:03:00]}  cxd4 {[%clk 0:02:59]} 4. Nxd4 {[%clk 0:03:00]}  Bg7 {[%clk 0:02:59]} 5. c4 {[%clk 0:03:00]}  Nc6 {[%clk 0:03:00]} 6. Be3 {[%clk 0:03:00]}  Nf6 {[%clk 0:03:01]} 7. Nc3 {[%clk 0:03:00]}  d6 {[%clk 0:03:01]} 8. Be2 {[%clk 0:02:59]}  O-O {[%clk 0:03:01]} 9. O-O {[%clk 0:02:57]}  Nxd4 {[%clk 0:03:02]} 10. Bxd4 {[%clk 0:02:57]}  Bd7 {[%clk 0:03:03]} 11. Qd2 {[%clk 0:02:53]}  Bc6 {[%clk 0:03:03]} 12. f3 {[%clk 0:02:53]}  a5 {[%clk 0:03:03]} 13. b3 {[%clk 0:02:52]}  Nd7 {[%clk 0:03:04]} 14. Bf2 {[%clk 0:02:49]}  Nc5 {[%clk 0:03:03]} 15. Rab1 {[%clk 0:02:49]}  Be5 {[%clk 0:03:02]} 16. Rfd1 {[%clk 0:02:31]}  e6 {[%clk 0:03:01]} 17. Bf1 {[%clk 0:02:25]}  Qf6 {[%clk 0:02:57]} 18. Ne2 {[%clk 0:02:25]}  Qe7 {[%clk 0:02:54]} 19. Nd4 {[%clk 0:02:15]}  f5 {[%clk 0:02:47]} 20. exf5 {[%clk 0:02:08]}  gxf5 {[%clk 0:02:42]} 21. Re1 {[%clk 0:01:59]}  Rae8 {[%clk 0:02:33]} 22. Nxc6 {[%clk 0:01:56]}  bxc6 {[%clk 0:02:34]} 23. Bxc5 {[%clk 0:01:53]}  Qh4 {[%clk 0:02:03]} 24. Rxe5 {[%clk 0:01:44]}  dxe5 {[%clk 0:02:03]} 25. Bxf8 {[%clk 0:01:42]}  Rxf8 {[%clk 0:02:03]} 26. Qd6 {[%clk 0:01:39]}  Qf6 {[%clk 0:01:49]} 27. Re1 {[%clk 0:01:34]}  e4 {[%clk 0:01:47]} 28. Qxc6 {[%clk 0:01:22]}  Qd4+ {[%clk 0:01:27]} 29. Kh1 {[%clk 0:01:21]}  Qf2 {[%clk 0:01:25]} 30. Qxe6+ {[%clk 0:01:17]}  Rf7 {[%clk 0:01:25]} 31. Rd1 {[%clk 0:01:09]}  exf3 {[%clk 0:01:19]} 32. Rd8+ {[%clk 0:00:54]}  Kg7 {[%clk 0:01:19]} 33. Qe5+ {[%clk 0:00:54]}  Rf6 {[%clk 0:01:13]} 34. Qg3+ {[%clk 0:00:43]}  Qxg3 {[%clk 0:01:10]} 35. hxg3 {[%clk 0:00:44]}  f2 {[%clk 0:01:09]} 36. Rd2 {[%clk 0:00:43]}  Rh6# {[%clk 0:01:09]} 0-1


[Site "https://www.chess.com"]

[Event "Titled Tuesday Blitz July 4 Late 2023"]
[White "Romero Arzuaga, Yudel"]
[Black "Aggelis, Nikolaos"]
[WhiteFideId "3521010"]
[BlackFideId "4213220"]
[WhiteElo "2382"]
[BlackElo "2526"]
[Result "0-1"]
[Round "8"]
[TimeControl "180+2"]
[Date "2023.07.04"]
[WhiteClock "0:00:58"]
[BlackClock "0:01:47"]
[Board "79"]

1. d4 {[%clk 0:03:00]}  f5 {[%clk 0:02:58]} 2. Nf3 {[%clk 0:02:59]}  Nf6 {[%clk 0:02:58]} 3. Bf4 {[%clk 0:02:58]}  d5 {[%clk 0:02:51]} 4. e3 {[%clk 0:02:58]}  c6 {[%clk 0:02:51]} 5. c3 {[%clk 0:02:58]}  Be6 {[%clk 0:02:50]} 6. Nbd2 {[%clk 0:02:55]}  Bf7 {[%clk 0:02:50]} 7. Bd3 {[%clk 0:02:53]}  e6 {[%clk 0:02:49]} 8. Ne5 {[%clk 0:02:45]}  Nbd7 {[%clk 0:02:47]} 9. Nxf7 {[%clk 0:02:44]}  Kxf7 {[%clk 0:02:47]} 10. Nf3 {[%clk 0:02:44]}  h6 {[%clk 0:02:43]} 11. Ne5+ {[%clk 0:02:42]}  Nxe5 {[%clk 0:02:42]} 12. Bxe5 {[%clk 0:02:42]}  Bd6 {[%clk 0:02:40]} 13. Bxf6 {[%clk 0:02:41]}  Qxf6 {[%clk 0:02:38]} 14. f4 {[%clk 0:02:26]}  g5 {[%clk 0:02:34]} 15. Qh5+ {[%clk 0:02:24]}  Qg6 {[%clk 0:02:33]} 16. Qxg6+ {[%clk 0:02:22]}  Kxg6 {[%clk 0:02:34]} 17. g3 {[%clk 0:02:23]}  g4 {[%clk 0:02:32]} 18. h4 {[%clk 0:02:17]}  h5 {[%clk 0:02:22]} 19. Ke2 {[%clk 0:02:12]}  Kf6 {[%clk 0:02:22]} 20. c4 {[%clk 0:02:10]}  c5 {[%clk 0:02:18]} 21. dxc5 {[%clk 0:02:07]}  dxc4 {[%clk 0:02:15]} 22. cxd6 {[%clk 0:02:01]}  cxd3+ {[%clk 0:02:15]} 23. Kxd3 {[%clk 0:02:01]}  Rhd8 {[%clk 0:02:15]} 24. Rhd1 {[%clk 0:02:01]}  Rxd6+ {[%clk 0:02:15]} 25. Ke2 {[%clk 0:02:00]}  Rad8 {[%clk 0:02:15]} 26. Rxd6 {[%clk 0:01:59]}  Rxd6 {[%clk 0:02:16]} 27. Rd1 {[%clk 0:01:56]}  Ke7 {[%clk 0:01:59]} 28. Rxd6 {[%clk 0:01:49]}  Kxd6 {[%clk 0:02:00]} 29. Kd3 {[%clk 0:01:50]}  Kd5 {[%clk 0:02:00]} 30. b3 {[%clk 0:01:47]}  b6 {[%clk 0:01:59]} 31. a3 {[%clk 0:01:46]}  b5 {[%clk 0:01:54]} 32. b4 {[%clk 0:01:29]}  e5 {[%clk 0:01:52]} 33. fxe5 {[%clk 0:01:09]}  Kxe5 {[%clk 0:01:52]} 34. Kd2 {[%clk 0:01:09]}  Ke4 {[%clk 0:01:46]} 35. Ke2 {[%clk 0:00:58]}  a6 {[%clk 0:01:47]} 0-1


[Site "https://www.chess.com"]

[Event "Titled Tuesday Blitz July 4 Late 2023"]
[White "Ardila, Oscar Humberto"]
[Black "Novik, Maxim"]
[WhiteFideId "4404742"]
[BlackFideId "4102924"]
[WhiteElo "2338"]
[BlackElo "2517"]
[Result "1-0"]
[Round "8"]
[TimeControl "180+2"]
[Date "2023.07.04"]
[WhiteClock "0:01:05"]
[BlackClock "0:00:51"]
[Board "80"]

1. d4 {[%clk 0:03:00]}  Nf6 {[%clk 0:02:58]} 2. c4 {[%clk 0:03:00]}  e6 {[%clk 0:02:58]} 3. Nc3 {[%clk 0:03:00]}  Bb4 {[%clk 0:02:58]} 4. Bd2 {[%clk 0:03:00]}  O-O {[%clk 0:02:57]} 5. Nf3 {[%clk 0:03:01]}  b6 {[%clk 0:02:57]} 6. e3 {[%clk 0:03:01]}  Bb7 {[%clk 0:02:57]} 7. Be2 {[%clk 0:03:01]}  c5 {[%clk 0:02:53]} 8. dxc5 {[%clk 0:02:59]}  Bxc5 {[%clk 0:02:51]} 9. O-O {[%clk 0:02:59]}  d5 {[%clk 0:02:49]} 10. cxd5 {[%clk 0:02:59]}  Nxd5 {[%clk 0:02:49]} 11. Ne4 {[%clk 0:02:54]}  Be7 {[%clk 0:02:49]} 12. Ng3 {[%clk 0:02:48]}  Nd7 {[%clk 0:02:45]} 13. Rc1 {[%clk 0:02:47]}  Nc5 {[%clk 0:02:44]} 14. b4 {[%clk 0:02:38]}  Nd7 {[%clk 0:02:43]} 15. Qb3 {[%clk 0:02:37]}  Rc8 {[%clk 0:02:15]} 16. Rfd1 {[%clk 0:02:36]}  Rxc1 {[%clk 0:02:14]} 17. Bxc1 {[%clk 0:02:32]}  Qb8 {[%clk 0:02:14]} 18. Nd4 {[%clk 0:02:28]}  Rc8 {[%clk 0:02:12]} 19. Bb2 {[%clk 0:02:27]}  Nxb4 {[%clk 0:02:09]} 20. Nxe6 {[%clk 0:02:08]}  Nc5 {[%clk 0:01:56]} 21. Nxc5 {[%clk 0:02:05]}  Bxc5 {[%clk 0:01:56]} 22. Bc4 {[%clk 0:01:46]}  Qc7 {[%clk 0:01:54]} 23. Qc3 {[%clk 0:01:43]}  Bf8 {[%clk 0:01:53]} 24. Rd4 {[%clk 0:01:30]}  b5 {[%clk 0:01:53]} 25. Rg4 {[%clk 0:01:29]}  Qxc4 {[%clk 0:00:51]} 26. Rxg7+ {[%clk 0:01:04]}  Kh8 {[%clk 0:00:51]} 27. Rg8+ {[%clk 0:01:05]}  Kxg8 {[%clk 0:00:51]} 28. Qh8# {[%clk 0:01:05]} 1-0


[Site "https://www.chess.com"]

[Event "Titled Tuesday Blitz July 4 Late 2023"]
[White "Cluke86"]
[Black "marik_spb"]
[WhiteElo "2330"]
[BlackElo "2504"]
[Result "0-1"]
[Round "8"]
[TimeControl "180+2"]
[Date "2023.07.04"]
[WhiteClock "0:00:03"]
[BlackClock "0:00:08"]
[Board "81"]

1. e4 {[%clk 0:03:00]}  e5 {[%clk 0:02:59]} 2. Nf3 {[%clk 0:02:59]}  Nc6 {[%clk 0:03:00]} 3. Bc4 {[%clk 0:02:58]}  Nf6 {[%clk 0:03:00]} 4. O-O {[%clk 0:02:58]}  Nxe4 {[%clk 0:02:57]} 5. Nc3 {[%clk 0:02:58]}  Nxc3 {[%clk 0:02:52]} 6. dxc3 {[%clk 0:02:59]}  Be7 {[%clk 0:02:40]} 7. Qd5 {[%clk 0:02:58]}  O-O {[%clk 0:02:31]} 8. Nxe5 {[%clk 0:02:58]}  Nxe5 {[%clk 0:02:31]} 9. Qxe5 {[%clk 0:02:59]}  d6 {[%clk 0:02:30]} 10. Qh5 {[%clk 0:02:56]}  Be6 {[%clk 0:02:17]} 11. Bd3 {[%clk 0:02:52]}  g6 {[%clk 0:02:16]} 12. Qf3 {[%clk 0:02:47]}  c6 {[%clk 0:02:12]} 13. c4 {[%clk 0:02:39]}  Bg5 {[%clk 0:02:06]} 14. Bxg5 {[%clk 0:02:28]}  Qxg5 {[%clk 0:02:07]} 15. Rfe1 {[%clk 0:02:16]}  Rfe8 {[%clk 0:02:06]} 16. a4 {[%clk 0:02:11]}  a5 {[%clk 0:01:58]} 17. Re3 {[%clk 0:01:58]}  Kg7 {[%clk 0:01:12]} 18. Rae1 {[%clk 0:01:57]}  Bd7 {[%clk 0:01:02]} 19. Rxe8 {[%clk 0:01:53]}  Rxe8 {[%clk 0:01:03]} 20. Rxe8 {[%clk 0:01:51]}  Bxe8 {[%clk 0:01:04]} 21. Bf1 {[%clk 0:01:43]}  Qe5 {[%clk 0:00:59]} 22. Qb3 {[%clk 0:01:40]}  c5 {[%clk 0:00:25]} 23. Qxb7 {[%clk 0:01:37]}  Bxa4 {[%clk 0:00:26]} 24. b3 {[%clk 0:01:26]}  Be8 {[%clk 0:00:25]} 25. g3 {[%clk 0:01:18]}  a4 {[%clk 0:00:22]} 26. Qa7 {[%clk 0:01:08]}  axb3 {[%clk 0:00:20]} 27. cxb3 {[%clk 0:01:09]}  Bc6 {[%clk 0:00:20]} 28. Qa2 {[%clk 0:00:45]}  Bf3 {[%clk 0:00:19]} 29. Qd2 {[%clk 0:00:41]}  h5 {[%clk 0:00:18]} 30. Bg2 {[%clk 0:00:41]}  Qa1+ {[%clk 0:00:17]} 31. Bf1 {[%clk 0:00:40]}  Qe5 {[%clk 0:00:15]} 32. Bg2 {[%clk 0:00:39]}  Bxg2 {[%clk 0:00:06]} 33. Kxg2 {[%clk 0:00:40]}  Qe4+ {[%clk 0:00:06]} 34. f3 {[%clk 0:00:39]}  Qe5 {[%clk 0:00:06]} 35. h4 {[%clk 0:00:39]}  f6 {[%clk 0:00:04]} 36. Kf2 {[%clk 0:00:34]}  g5 {[%clk 0:00:05]} 37. hxg5 {[%clk 0:00:33]}  fxg5 {[%clk 0:00:06]} 38. Qe3 {[%clk 0:00:20]}  Qxe3+ {[%clk 0:00:03]} 39. Kxe3 {[%clk 0:00:21]}  Kf6 {[%clk 0:00:01]} 40. Ke4 {[%clk 0:00:17]}  Ke6 {[%clk 0:00:02]} 41. f4 {[%clk 0:00:16]}  gxf4 {[%clk 0:00:02]} 42. Kxf4 {[%clk 0:00:16]}  Kf6 {[%clk 0:00:03]} 43. g4 {[%clk 0:00:14]}  hxg4 {[%clk 0:00:04]} 44. Kxg4 {[%clk 0:00:14]}  Ke5 {[%clk 0:00:05]} 45. Kf3 {[%clk 0:00:13]}  Kd4 {[%clk 0:00:05]} 46. Kf4 {[%clk 0:00:13]}  Kc3 {[%clk 0:00:06]} 47. Ke4 {[%clk 0:00:09]}  Kxb3 {[%clk 0:00:06]} 48. Kd5 {[%clk 0:00:10]}  Kb4 {[%clk 0:00:07]} 49. Kxd6 {[%clk 0:00:09]}  Kxc4 {[%clk 0:00:07]} 50. Ke5 {[%clk 0:00:03]}  Kd3 {[%clk 0:00:08]} 0-1


[Site "https://www.chess.com"]

[Event "Titled Tuesday Blitz July 4 Late 2023"]
[White "Curtis, John"]
[Black "Deng, Henry"]
[WhiteFideId "3200256"]
[BlackFideId "30965454"]
[WhiteElo "2145"]
[BlackElo "2490"]
[Result "0-1"]
[Round "8"]
[TimeControl "180+2"]
[Date "2023.07.04"]
[WhiteClock "0:00:16"]
[BlackClock "0:00:35"]
[Board "82"]

1. d4 {[%clk 0:02:59]}  d5 {[%clk 0:03:00]} 2. Nf3 {[%clk 0:02:58]}  Nf6 {[%clk 0:02:59]} 3. c4 {[%clk 0:02:58]}  c6 {[%clk 0:02:59]} 4. e3 {[%clk 0:02:57]}  Bf5 {[%clk 0:02:58]} 5. Nc3 {[%clk 0:02:56]}  e6 {[%clk 0:02:55]} 6. Bd3 {[%clk 0:02:56]}  Bg6 {[%clk 0:02:53]} 7. O-O {[%clk 0:02:54]}  Bd6 {[%clk 0:02:49]} 8. Qe2 {[%clk 0:02:52]}  O-O {[%clk 0:02:48]} 9. e4 {[%clk 0:02:51]}  dxe4 {[%clk 0:02:45]} 10. Nxe4 {[%clk 0:02:51]}  Nxe4 {[%clk 0:02:45]} 11. Bxe4 {[%clk 0:02:51]}  Nd7 {[%clk 0:02:45]} 12. Bxg6 {[%clk 0:02:49]}  hxg6 {[%clk 0:02:44]} 13. Bg5 {[%clk 0:02:47]}  Qc7 {[%clk 0:02:42]} 14. Rfe1 {[%clk 0:02:44]}  Rfe8 {[%clk 0:02:40]} 15. g3 {[%clk 0:02:35]}  e5 {[%clk 0:02:28]} 16. c5 {[%clk 0:02:28]}  Bf8 {[%clk 0:02:12]} 17. Nxe5 {[%clk 0:02:27]}  Nxe5 {[%clk 0:02:11]} 18. dxe5 {[%clk 0:02:27]}  Bxc5 {[%clk 0:02:11]} 19. a3 {[%clk 0:02:14]}  Bd4 {[%clk 0:02:01]} 20. Bf4 {[%clk 0:02:12]}  Qb6 {[%clk 0:02:00]} 21. Qc2 {[%clk 0:01:57]}  Re6 {[%clk 0:01:54]} 22. Re4 {[%clk 0:01:55]}  Rae8 {[%clk 0:01:45]} 23. Rd1 {[%clk 0:01:53]}  Bxe5 {[%clk 0:01:30]} 24. Rxe5 {[%clk 0:01:47]}  Rxe5 {[%clk 0:01:29]} 25. Bxe5 {[%clk 0:01:47]}  Rxe5 {[%clk 0:01:29]} 26. Rd7 {[%clk 0:01:43]}  Qa5 {[%clk 0:01:24]} 27. b4 {[%clk 0:01:06]}  Qxa3 {[%clk 0:01:01]} 28. Rxb7 {[%clk 0:01:06]}  Qf3 {[%clk 0:00:56]} 29. Qc1 {[%clk 0:00:16]}  Rd5 {[%clk 0:00:35]} 0-1


[Site "https://www.chess.com"]

[Event "Titled Tuesday Blitz July 4 Late 2023"]
[White "Kielinkei"]
[Black "Pinheiro, Iung Alicio de O."]
[BlackFideId "2104350"]
[WhiteElo "2419"]
[BlackElo "2573"]
[Result "1/2-1/2"]
[Round "8"]
[TimeControl "180+2"]
[Date "2023.07.04"]
[WhiteClock "0:00:09"]
[BlackClock "0:00:40"]
[Board "84"]

1. d4 {[%clk 0:03:00]}  Nf6 {[%clk 0:02:59]} 2. c4 {[%clk 0:02:59]}  e6 {[%clk 0:02:58]} 3. g3 {[%clk 0:02:59]}  c5 {[%clk 0:02:55]} 4. Nf3 {[%clk 0:02:57]}  cxd4 {[%clk 0:02:53]} 5. Nxd4 {[%clk 0:02:58]}  d5 {[%clk 0:02:54]} 6. Bg2 {[%clk 0:02:57]}  e5 {[%clk 0:02:54]} 7. Nf3 {[%clk 0:02:49]}  d4 {[%clk 0:02:53]} 8. O-O {[%clk 0:02:47]}  Nc6 {[%clk 0:02:54]} 9. e3 {[%clk 0:02:09]}  Bc5 {[%clk 0:02:43]} 10. exd4 {[%clk 0:02:08]}  exd4 {[%clk 0:02:43]} 11. Re1+ {[%clk 0:01:59]}  Be6 {[%clk 0:02:39]} 12. Ng5 {[%clk 0:01:52]}  O-O {[%clk 0:02:37]} 13. Rxe6 {[%clk 0:01:41]}  fxe6 {[%clk 0:02:35]} 14. Nxe6 {[%clk 0:01:42]}  Qb6 {[%clk 0:02:34]} 15. Nxf8 {[%clk 0:00:42]}  Rxf8 {[%clk 0:02:31]} 16. Na3 {[%clk 0:00:41]}  d3 {[%clk 0:02:06]} 17. Qxd3 {[%clk 0:00:40]}  Ng4 {[%clk 0:02:00]} 18. Nc2 {[%clk 0:00:11]}  Rxf2 {[%clk 0:01:34]} 19. Kh1 {[%clk 0:00:09]}  Rf1+ {[%clk 0:01:32]} 20. Qxf1 {[%clk 0:00:07]}  Nf2+ {[%clk 0:01:29]} 21. Kg1 {[%clk 0:00:08]}  Nh3+ {[%clk 0:01:20]} 22. Kh1 {[%clk 0:00:08]}  Nf2+ {[%clk 0:01:20]} 23. Kg1 {[%clk 0:00:09]}  Nh3+ {[%clk 0:00:56]} 24. Kh1 {[%clk 0:00:09]}  Nf2+ {[%clk 0:00:40]} 1/2-1/2


[Site "https://www.chess.com"]

[Event "Titled Tuesday Blitz July 4 Late 2023"]
[White "Castella Garcia, Fausto"]
[Black "Grinev, Valeriy"]
[WhiteFideId "3501922"]
[BlackFideId "14117517"]
[WhiteElo "2408"]
[BlackElo "2572"]
[Result "1-0"]
[Round "8"]
[TimeControl "180+2"]
[Date "2023.07.04"]
[WhiteClock "0:01:07"]
[BlackClock "0:01:43"]
[Board "85"]

1. e4 {[%clk 0:03:00]}  c5 {[%clk 0:03:00]} 2. Nf3 {[%clk 0:03:00]}  Nc6 {[%clk 0:03:01]} 3. Bb5 {[%clk 0:03:00]}  g6 {[%clk 0:03:01]} 4. c3 {[%clk 0:02:59]}  Bg7 {[%clk 0:03:01]} 5. d4 {[%clk 0:02:58]}  cxd4 {[%clk 0:03:02]} 6. cxd4 {[%clk 0:02:59]}  d5 {[%clk 0:03:02]} 7. exd5 {[%clk 0:02:59]}  Qxd5 {[%clk 0:03:02]} 8. Nc3 {[%clk 0:02:59]}  Qh5 {[%clk 0:02:53]} 9. d5 {[%clk 0:02:50]}  Bd7 {[%clk 0:02:46]} 10. dxc6 {[%clk 0:02:48]}  Bxc3+ {[%clk 0:02:45]} 11. bxc3 {[%clk 0:02:48]}  bxc6 {[%clk 0:02:41]} 12. Be2 {[%clk 0:02:46]}  Rd8 {[%clk 0:02:40]} 13. O-O {[%clk 0:02:42]}  Nf6 {[%clk 0:02:39]} 14. Bf4 {[%clk 0:02:34]}  O-O {[%clk 0:02:36]} 15. Qa4 {[%clk 0:02:19]}  c5 {[%clk 0:02:33]} 16. Qxa7 {[%clk 0:02:15]}  Nd5 {[%clk 0:02:33]} 17. Bd2 {[%clk 0:02:08]}  Qf5 {[%clk 0:02:28]} 18. Qxc5 {[%clk 0:02:03]}  Nf4 {[%clk 0:02:24]} 19. Qe3 {[%clk 0:01:56]}  g5 {[%clk 0:02:07]} 20. Nd4 {[%clk 0:01:53]}  Qf6 {[%clk 0:02:05]} 21. Bf3 {[%clk 0:01:47]}  e5 {[%clk 0:02:05]} 22. Ne2 {[%clk 0:01:44]}  g4 {[%clk 0:02:04]} 23. Be4 {[%clk 0:01:38]}  Bb5 {[%clk 0:02:04]} 24. Nxf4 {[%clk 0:01:29]}  exf4 {[%clk 0:02:04]} 25. Qxf4 {[%clk 0:01:30]}  Qxf4 {[%clk 0:02:04]} 26. Bxf4 {[%clk 0:01:30]}  Bxf1 {[%clk 0:02:05]} 27. Kxf1 {[%clk 0:01:30]}  f5 {[%clk 0:02:05]} 28. Bc2 {[%clk 0:01:25]}  Rfe8 {[%clk 0:02:04]} 29. a4 {[%clk 0:01:20]}  Kg7 {[%clk 0:02:02]} 30. a5 {[%clk 0:01:19]}  Kg6 {[%clk 0:02:03]} 31. a6 {[%clk 0:01:20]}  Rc8 {[%clk 0:02:01]} 32. a7 {[%clk 0:01:17]}  Rxc3 {[%clk 0:02:00]} 33. a8=Q {[%clk 0:01:15]}  Rxa8 {[%clk 0:02:00]} 34. Rxa8 {[%clk 0:01:16]}  Rxc2 {[%clk 0:02:00]} 35. Ra6+ {[%clk 0:01:15]}  Kg7 {[%clk 0:02:00]} 36. g3 {[%clk 0:01:14]}  Kf7 {[%clk 0:01:54]} 37. Kg2 {[%clk 0:01:14]}  Kg7 {[%clk 0:01:54]} 38. Be5+ {[%clk 0:01:13]}  Kg8 {[%clk 0:01:49]} 39. Rf6 {[%clk 0:01:11]}  Re2 {[%clk 0:01:47]} 40. Rxf5 {[%clk 0:01:11]}  h6 {[%clk 0:01:47]} 41. Bf4 {[%clk 0:01:10]}  Kh7 {[%clk 0:01:47]} 42. Re5 {[%clk 0:01:09]}  Rc2 {[%clk 0:01:46]} 43. Re7+ {[%clk 0:01:08]}  Kg6 {[%clk 0:01:46]} 44. Re6+ {[%clk 0:01:08]}  Kf5 {[%clk 0:01:47]} 45. Rxh6 {[%clk 0:01:08]}  Rc8 {[%clk 0:01:46]} 46. Rh5+ {[%clk 0:01:08]}  Ke4 {[%clk 0:01:47]} 47. Re5+ {[%clk 0:01:08]}  Kd4 {[%clk 0:01:47]} 48. Rg5 {[%clk 0:01:08]}  Rg8 {[%clk 0:01:43]} 49. Rxg8 {[%clk 0:01:07]} 1-0


[Site "https://www.chess.com"]